bitfinex-derivatives/quotes_ETHF0:USTF0_20251009
["timestamp","ask_amount","ask_price","bid_price","bid_amount"]
[1760042051972,3.533,4335.4,4335.3,0.41494]
[1760042052173,0.3252,4335.7,4335.3,0.64594]
[1760042052376,0.3252,4335.7,4335.4,40.8]
[1760042052681,0.45952342,4335.5,4335.4,40.8]
[1760042052980,0.13432342,4335.5,4335.4,40.8]
[1760042053582,0.45952342,4335.5,4335.4,40.8]
[1760042054279,0.45952342,4335.5,4335.4,44.0078]
[1760042055877,0.13432342,4335.5,4335.4,44.0078]
[1760042056071,0.3252,4336.1,4335.4,50.04514]
[1760042056270,0.3252,4336.1,4335.9,0.41488]
[1760042056470,0.3252,4336.1,4335.9,0.64588]
[1760042056675,0.4577,4336.0,4335.9,0.64588]
[1760042057179,0.46042425,4336.0,4335.9,0.64780626]
[1760042058179,0.46042425,4336.0,4335.9,3.85560626]
[1760042059079,0.00272425,4336.0,4335.9,3.85560626]
[1760042059279,0.1325,4336.5,4336.4,0.41484]
[1760042059482,0.1325,4336.5,4336.4,0.64584]
[1760042059681,0.4577,4336.5,4336.4,0.64584]
[1760042059880,0.4577,4336.5,4336.4,41.44584]
[1760042060278,0.45988958,4336.5,4336.4,41.44584]
[1760042061678,0.45988958,4336.5,4336.4,41.21484]
[1760042061881,0.45988958,4336.5,4336.4,40.8]
[1760042062087,0.45988958,4336.5,4336.4,41.21484]
[1760042062487,8.39033503,4336.5,4336.4,40.8]
[1760042062687,0.7745,4336.2,4336.1,0.41486]
[1760042062888,0.3252,4336.2,4336.1,0.41486]
[1760042063087,0.3252,4336.2,4336.1,41.21486]
[1760042078092,3.36060458,4336.2,4336.1,41.21486]
[1760042078292,3.89043434,4336.2,4336.1,41.21486]
[1760042078897,3.36060458,4336.2,4336.1,41.21486]
[1760042079093,3.89080393,4336.2,4336.1,41.21486]
[1760042082301,4.33500393,4336.2,4336.1,0.41486]
[1760042082905,4.33500393,4336.2,4336.1,41.21486]
[1760042087504,7.54280393,4336.2,4336.1,41.21486]
[1760042088801,7.77380393,4336.2,4336.1,0.41486]
[1760042089196,7.77380393,4336.2,4336.1,41.21486]
[1760042089402,7.09860393,4336.2,4336.1,41.21486]
[1760042093915,4.06319935,4336.2,4336.1,41.21486]
[1760042094118,4.06319935,4336.2,4336.1,41.44586]
[1760042099911,0.85539935,4336.2,4336.1,41.44586]
[1760042105519,0.18149935,4336.2,4336.1,46.44586]
[1760042105719,0.44958958,4336.5,4336.4,0.41484]
[1760042106024,0.44958958,4336.5,4336.4,0.64584]
[1760042107917,0.67868958,4336.5,4336.4,0.64584]
[1760042108417,0.90238958,4336.5,4336.4,0.64584]
[1760042109616,0.67868958,4336.5,4336.4,0.64584]
[1760042109819,0.44958958,4336.5,4336.4,0.64584]
[1760042110121,0.44958958,4336.5,4336.4,3.85364]
[1760042110425,0.1325,4337.0,4336.9,0.41479]
[1760042110621,0.1325,4337.0,4336.9,0.64579]
[1760042111120,0.1325,4337.0,4336.9,41.44579]
[1760042111323,0.1342257,4337.0,4336.9,41.44579]
[1760042112426,0.4818257,4337.0,4336.9,41.44579]
[1760042121635,1.0296967,4337.0,4336.9,41.44579]
[1760042122940,12.67118839,4337.0,4336.9,40.8]
[1760042124737,1.19619,4336.9,4336.8,0.4148]
[1760042125040,1.19622,4336.6,4336.5,0.41482]
[1760042125240,1.744091,4336.6,4336.5,41.21482]
[1760042125540,4.7986474,4336.6,4336.5,41.21482]
[1760042126133,4.7986474,4336.6,4336.5,40.8]
[1760042126934,4.3838274,4336.6,4336.5,40.8]
[1760042127134,4.3838274,4336.6,4336.5,41.21483]
[1760042128430,0.895471,4336.6,4336.5,41.21483]
[1760042129433,4.29782008,4336.6,4336.5,40.8]
[1760042130442,4.52882008,4336.6,4336.5,40.8]
[1760042131344,4.52882008,4336.6,4336.5,41.21483]
[1760042136550,4.29782008,4336.6,4336.5,41.21483]
[1760042136744,4.52882008,4336.6,4336.5,41.21483]
[1760042141353,4.52882008,4336.6,4336.5,40.8]
[1760042141852,4.52882008,4336.6,4336.5,41.21483]
[1760042142247,4.11400008,4336.6,4336.5,41.21483]
[1760042142448,4.11400008,4336.6,4336.5,41.44583]
[1760042142449,0.895471,4336.6,4336.5,41.44583]
[1760042143750,1.310291,4336.6,4336.5,41.44583]
[1760042146456,0.895471,4336.6,4336.5,41.44583]
[1760042147256,0.41487,4336.1,4336.0,3.2078]
[1760042147457,0.7714,4335.1,4335.0,3.2078]
[1760042147662,0.7714,4335.1,4334.7,0.415]
[1760042147663,0.7714,4334.8,4334.7,0.415]
[1760042147858,1.319271,4334.8,4334.7,0.646]
[1760042148263,1.319271,4334.8,4334.7,0.231]
[1760042148469,1.319271,4334.8,4334.7,0.00295724]
[1760042148470,4.27782407,4334.8,4334.7,0.00295724]
[1760042148965,4.27782407,4334.8,4334.7,40.80295724]
[1760042153670,4.27782407,4334.8,4334.7,0.00295724]
[1760042155172,0.7714,4333.8,4333.7,0.41509]
[1760042155368,0.7714,4333.8,4333.7,0.64609]
[1760042155564,0.7714,4333.8,4333.7,41.44609]
[1760042156161,0.77318527,4333.8,4333.7,41.44861616]
[1760042156568,0.77318527,4333.8,4333.7,41.03352616]
[1760042157168,4.16265878,4333.8,4333.7,41.03352616]
[1760042157571,4.39365878,4333.8,4333.7,40.80252616]
[1760042157770,7.60145878,4333.8,4333.7,40.80252616]
[1760042158369,6.95536878,4333.8,4333.7,40.80252616]
[1760042158569,7.18636878,4333.8,4333.7,40.80252616]
[1760042158869,6.74046878,4333.8,4333.7,40.80252616]
[1760042159262,0.34488527,4333.8,4333.7,40.80252616]
[1760042162375,0.34488527,4333.8,4333.7,41.21762616]
[1760042174683,5.27e-06,4333.8,4333.7,41.21762616]
[1760042181586,3.3347,4334.5,4334.1,0.41506]
[1760042181587,0.3301,4334.4,4334.1,0.41506]
[1760042181890,0.57691998,4334.3,4334.2,0.64605]
[1760042182188,0.90701998,4334.3,4334.2,0.64605]
[1760042182493,0.90865984,4334.3,4334.2,0.64605]
[1760042183194,0.33173986,4334.3,4334.2,0.64605]
[1760042185089,0.00163986,4334.3,4334.2,0.64605]
[1760042186384,3.3347,4335.0,4334.9,0.41498]
[1760042186590,0.70341896,4335.0,4334.9,0.64598]
[1760042186893,0.70341896,4335.0,4334.9,41.44598]
[1760042187095,1.03351896,4335.0,4334.9,41.44598]
[1760042187287,0.457,4335.0,4334.9,41.44598]
[1760042187484,0.45917126,4335.0,4334.9,41.44598]
[1760042191594,0.12907126,4335.0,4334.9,41.44598]
[1760042191787,0.00217126,4335.0,4334.9,41.44598]
[1760042191988,3.3462,4336.0,4335.9,0.41488]
[1760042192303,4.25186597,4336.0,4335.9,0.64588]
[1760042192796,0.3301,4336.4,4336.3,0.41485]
[1760042193398,0.905304,4336.4,4336.3,0.41485]
[1760042193601,0.9072012,4336.4,4336.3,0.41485]
[1760042194097,0.3319972,4336.4,4336.3,0.41485]
[1760042197795,0.5613972,4336.4,4336.3,0.41485]
[1760042198097,0.5613972,4336.4,4336.2,0.64586]
[1760042198098,0.7624,4336.3,4336.2,0.64586]
[1760042198300,0.5454,4336.3,4336.2,0.64586]
[1760042198502,0.3212,4336.3,4336.2,0.64586]
[1760042198804,0.3212,4336.3,4336.2,0.41486]
[1760042201201,0.5454,4336.3,4336.2,0.41486]
[1760042201909,0.3212,4336.3,4336.2,0.41486]
[1760042217212,0.89532168,4336.3,4336.2,0.41486]
[1760042217612,0.0018972,4336.4,4336.2,0.41486]
[1760042217812,0.3164972,4336.4,4336.3,0.231]
[1760042218117,0.89061018,4336.4,4336.3,0.231]
[1760042218317,0.89061018,4336.4,4336.3,0.64585]
[1760042219118,1.11281018,4336.4,4336.3,0.64585]
[1760042220222,1.32851018,4336.4,4336.3,0.64585]
[1760042220723,0.89061018,4336.4,4336.3,0.64585]
[1760042221925,1.11281018,4336.4,4336.3,0.64585]
[1760042222317,0.89061018,4336.4,4336.3,0.64585]
[1760042227028,0.57601018,4336.4,4336.3,0.64585]
[1760042227429,0.90001018,4336.4,4336.3,0.64585]
[1760042228533,1.12941018,4336.4,4336.3,0.64585]
[1760042230035,4.3146327,4336.4,4336.3,0.64585]
[1760042230834,0.7748,4336.3,4336.2,0.41486]
[1760042231033,1.34891298,4336.3,4336.2,0.41486]
[1760042231236,0.7748,4335.3,4335.2,3.2078]
[1760042231531,0.7748,4335.3,4334.5,1.03754]
[1760042231532,0.684,4335.0,4334.9,0.41498]
[1760042231725,1.25811298,4335.0,4334.9,41.21498]
[1760042236331,0.684,4335.0,4334.9,41.21498]
[1760042240837,0.36,4334.0,4333.9,0.41508]
[1760042241144,0.1306,4334.0,4333.9,0.64608]
[1760042241443,0.4546,4334.0,4333.9,41.44608]
[1760042242436,0.41499,4334.9,4333.9,41.44608]
[1760042242437,3.2078,4335.2,4334.6,0.41501]
[1760042242944,3.2078,4335.2,4334.9,0.41498]
[1760042243641,3.2078,4335.2,4334.9,41.21498]
[1760042244443,0.4546,4335.0,4334.9,41.21498]
[1760042252248,0.4546,4335.0,4334.9,41.44598]
[1760042252847,0.324,4335.4,4335.3,0.41494]
[1760042254145,1.34616303,4335.4,4335.3,0.41494]
[1760042254446,4.55396303,4335.4,4335.3,0.41494]
[1760042258754,4.78496303,4335.4,4335.3,0.41494]
[1760042260953,1.57716303,4335.4,4335.3,0.41494]
[1760042261155,4.78496303,4335.4,4335.3,0.41494]
[1760042261347,4.78496303,4335.4,4334.9,42.48343]
[1760042261348,0.3442,4335.0,4334.9,41.031]
[1760042261550,0.902,4335.0,4334.9,0.41498]
[1760042261751,1.47336303,4335.0,4334.9,0.41498]
[1760042263447,1.25566303,4335.0,4334.9,0.41498]
[1760042263651,1.48666303,4335.0,4334.9,0.41498]
[1760042264456,1.27596303,4335.0,4334.9,0.41498]
[1760042264650,1.48666303,4335.0,4334.9,0.41498]
[1760042266258,1.25566303,4335.0,4334.9,0.41498]
[1760042268558,1.47336303,4335.0,4334.9,0.41498]
[1760042272459,1.47336303,4335.0,4334.6,40.8]
[1760042272460,0.2305,4334.7,4334.6,40.8]
[1760042272668,0.5657,4334.7,4334.6,40.8]
[1760042272966,4.13461173,4334.7,4334.6,40.8]
[1760042273466,4.54961173,4334.7,4334.6,41.21501]
[1760042273869,4.76571173,4334.7,4334.6,0.41501]
[1760042274865,4.35071173,4334.7,4334.6,0.41501]
[1760042276266,4.58171173,4334.7,4334.6,0.41501]
[1760042278168,4.99671173,4334.7,4334.6,0.41501]
[1760042280174,4.58171173,4334.7,4334.6,0.41501]
[1760042280779,4.35071173,4334.7,4334.6,0.41501]
[1760042281073,4.58171173,4334.7,4334.6,0.41501]
[1760042281369,3.90411173,4334.7,4334.6,0.41501]
[1760042281559,4.13511173,4334.7,4334.6,0.41501]
[1760042281964,3.90411173,4334.7,4334.6,0.41501]
[1760042282170,0.90656303,4334.7,4334.6,0.41501]
[1760042282573,1.35316303,4334.7,4334.6,41.21501]
[1760042282772,1.58416303,4334.7,4334.6,41.21501]
[1760042282975,4.55831793,4334.7,4334.6,0.41501]
[1760042283475,4.97331793,4334.7,4334.6,0.41501]
[1760042286669,4.55831793,4334.7,4334.6,0.41501]
[1760042286972,4.32731793,4334.7,4334.6,0.41501]
[1760042287274,4.55831793,4334.7,4334.6,0.41501]
[1760042287867,4.32731793,4334.7,4334.6,0.41501]
[1760042288065,0.90656303,4334.7,4334.6,0.41501]
[1760042288774,0.90656303,4334.7,4334.6,41.21501]
[1760042289677,0.57136303,4334.7,4334.6,46.21501]
[1760042289871,0.57285425,4334.7,4334.6,46.21501]
[1760042290577,4.58337561,4336.0,4335.1,1.03741]
[1760042290772,0.5571,4335.9,4335.8,0.41489]
[1760042290973,3.58510114,4335.9,4335.8,0.41489]
[1760042291173,3.81540114,4335.9,4335.8,0.41489]
[1760042291981,0.9113,4335.5,4335.4,0.231]
[1760042292372,0.3261,4335.4,4335.0,0.231]
[1760042292572,0.5564,4335.4,4335.0,0.231]
[1760042293379,0.7771,4335.3,4335.2,0.41495]
[1760042296073,0.5564,4335.3,4335.2,0.41495]
[1760042296286,0.3261,4335.3,4335.2,0.41495]
[1760042296479,0.1342,4335.5,4335.4,0.41493]
[1760042296781,0.4603,4335.5,4335.4,0.41493]
[1760042297189,3.3384,4336.0,4335.9,0.41488]
[1760042297376,4.1258,4336.0,4335.9,0.41488]
[1760042297578,7.17764408,4336.0,4335.9,0.41488]
[1760042297878,7.39834408,4336.0,4335.9,0.41488]
[1760042299183,7.16734408,4336.0,4335.9,0.41488]
[1760042299388,3.2078,4336.0,4335.9,5.41488]
[1760042299880,3.2078,4336.0,4335.9,46.21488]
[1760042300079,3.2078,4336.0,4335.9,41.21488]
[1760042300483,3.6681,4336.0,4335.9,41.21488]
[1760042301075,3.5339,4336.0,4335.9,41.21488]
[1760042302586,3.2078,4336.0,4335.9,41.21488]
[1760042305378,0.0018972,4336.4,4336.3,0.41485]
[1760042305786,0.3279972,4336.4,4336.3,0.41485]
[1760042310185,0.5582972,4336.4,4336.3,0.41485]
[1760042314790,0.3279972,4336.4,4336.3,0.64585]
[1760042317996,0.7689972,4336.4,4336.3,0.64585]
[1760042318294,1.33488768,4336.4,4336.3,0.64585]
[1760042319700,1.33533349,4336.4,4336.3,0.64585]
[1760042333912,1.12463349,4336.4,4336.3,0.64585]
[1760042334510,0.89433349,4336.4,4336.3,0.64585]
[1760042335003,0.56823349,4336.4,4336.3,0.64585]
[1760042336205,0.56823349,4336.4,4336.3,5.64585]
[1760042336404,4.45277561,4337.1,4337.0,0.41478]
[1760042336611,3.2078,4337.1,4337.0,0.41478]
[1760042336810,0.3283,4337.1,4337.0,41.21478]
[1760042337415,0.33009118,4337.1,4337.0,41.21728652]
[1760042344027,0.00179118,4337.1,4337.0,41.21728652]
[1760042344228,0.33009118,4337.1,4337.0,41.21728652]
[1760042344624,0.00179118,4337.1,4337.0,41.21728652]
[1760042345920,0.022,4337.9,4337.8,0.4147]
[1760042346122,0.022,4337.9,4337.8,0.6447]
[1760042346316,0.3628,4337.9,4337.8,0.6447]
[1760042346522,0.3628,4337.9,4337.8,41.4447]
[1760042347021,0.36518396,4337.9,4337.8,41.4447]
[1760042347216,0.02438396,4337.9,4337.8,41.4447]
[1760042347728,0.36518396,4337.9,4337.8,41.4447]
[1760042348631,0.92210918,4337.9,4337.8,41.4447]
[1760042350327,4.34277555,4337.9,4337.8,41.2147]
[1760042352132,4.78847555,4337.9,4337.8,0.4147]
[1760042352529,4.37378555,4337.9,4337.8,0.4147]
[1760042353028,4.78847555,4337.9,4337.8,0.4147]
[1760042354128,4.78847555,4337.9,4337.6,40.8]
[1760042354435,1.75813522,4337.8,4337.7,0.41471]
[1760042354734,4.79320737,4337.8,4337.7,0.41471]
[1760042355027,0.75551,4337.7,4337.6,40.8]
[1760042355229,1.31243522,4337.7,4337.6,40.8]
[1760042355433,4.35212776,4337.7,4337.6,40.8]
[1760042355734,4.58212776,4337.7,4337.6,40.8]
[1760042359332,4.58212776,4337.7,4337.6,41.21472]
[1760042361729,4.35212776,4337.7,4337.6,41.21472]
[1760042361930,4.16741776,4337.7,4337.6,41.21472]
[1760042362131,4.58212776,4337.7,4337.6,41.21472]
[1760042363033,4.35212776,4337.7,4337.6,41.21472]
[1760042363237,4.58212776,4337.7,4337.6,41.21472]
[1760042365031,7.78992776,4337.7,4337.6,41.21472]
[1760042368843,7.55992776,4337.7,4337.6,41.21472]
[1760042369144,7.78992776,4337.7,4337.6,41.21472]
[1760042371043,7.37521776,4337.7,4337.6,41.21472]
[1760042372345,7.78992776,4337.7,4337.6,41.21472]
[1760042373046,7.78992776,4337.7,4337.6,40.8]
[1760042373245,7.78992776,4337.7,4337.6,41.21472]
[1760042374749,7.78992776,4337.7,4337.6,40.8]
[1760042374952,7.78992776,4337.7,4337.6,41.21472]
[1760042375448,8.23562776,4337.7,4337.6,0.41472]
[1760042378851,8.00562776,4337.7,4337.6,0.41472]
[1760042379045,8.23562776,4337.7,4337.6,0.41472]
[1760042379246,9.48060337,4337.7,4337.6,0.41472]
[1760042380846,8.23562776,4337.7,4337.6,0.41472]
[1760042382851,8.23562776,4337.7,4337.5,40.8]
[1760042382852,0.3471,4337.6,4337.5,40.8]
[1760042383053,0.90402522,4337.6,4337.5,40.8]
[1760042383252,3.92630862,4337.6,4337.5,41.21473]
[1760042388048,0.90402522,4337.6,4337.5,41.21473]
[1760042393656,0.55692522,4337.6,4337.5,41.21473]
[1760042393853,0.55692522,4337.6,4337.5,46.21473]
[1760042394055,0.55814792,4337.6,4337.5,45.8]
[1760042394253,0.55814792,4337.6,4337.5,46.21473]
[1760042394559,0.02438396,4337.9,4337.8,0.4147]
[1760042394754,0.35498396,4337.9,4337.8,0.6447]
[1760042394955,0.9107537,4337.9,4337.8,0.6447]
[1760042400456,0.4107537,4337.9,4337.8,0.874]
[1760042400662,3.4174,4338.2,4338.1,0.6837]
[1760042400861,3.4174,4338.2,4338.1,0.9137]
[1760042401658,3.41980443,4338.2,4338.1,0.9137]
[1760042402263,3.41980443,4338.2,4338.1,1.32837]
[1760042402666,3.75040443,4338.2,4338.1,1.32837]
[1760042403166,3.21020443,4338.2,4338.1,1.32837]
[1760042406870,3.21020443,4338.2,4338.1,42.12837]
[1760042407767,3.54710443,4338.2,4338.1,42.12837]
[1760042408072,3.54710443,4338.2,4338.1,41.66417]
[1760042411866,3.54710443,4338.2,4338.1,41.89927]
[1760042412560,4.10138952,4338.2,4338.1,41.66417]
[1760042414471,4.10138952,4338.2,4338.1,41.89417]
[1760042416072,4.10138952,4338.2,4338.1,42.12927]
[1760042418374,4.10138952,4338.2,4338.1,41.89417]
[1760042419470,4.10138952,4338.2,4338.1,42.12927]
[1760042420773,4.10138952,4338.2,4338.1,41.89417]
[1760042421786,7.95408235,4338.2,4338.1,0.64467]
[1760042421976,7.53942235,4338.2,4338.1,0.64467]
[1760042423087,7.09412235,4338.2,4338.1,1.31897]
[1760042423373,7.32412235,4338.2,4338.1,1.31897]
[1760042423572,7.31772235,4338.2,4338.1,1.31897]
[1760042423773,7.09412235,4338.2,4338.1,1.31897]
[1760042424179,7.31772235,4338.2,4338.1,1.31897]
[1760042425177,3.76448952,4338.2,4338.1,1.31897]
[1760042425773,0.55668952,4338.2,4338.1,42.11897]
[1760042427582,3.2078,4338.8,4338.7,0.63462]
[1760042427784,3.2078,4338.8,4338.7,1.31892]
[1760042428574,3.20968378,4338.8,4338.7,1.31892]
[1760042429169,3.20968378,4338.8,4338.7,42.11892]
[1760042432484,0.00188378,4338.8,4338.7,42.11892]
[1760042434078,0.33878378,4338.8,4338.7,42.11892]
[1760042434289,0.33878378,4338.8,4338.7,41.88382]
[1760042434487,0.33878378,4338.8,4338.7,42.11892]
[1760042438484,0.33878378,4338.8,4338.7,41.88382]
[1760042439284,0.33878378,4338.8,4338.7,42.11842]
[1760042439986,0.88916543,4338.8,4338.7,42.11842]
[1760042440486,0.88916543,4338.8,4338.7,41.88382]
[1760042444887,0.88916543,4338.8,4338.7,42.11842]
[1760042450301,4.36513583,4338.8,4338.7,41.03]
[1760042450695,4.36513583,4338.8,4338.7,40.8]
[1760042450898,4.36513583,4338.8,4338.7,41.21462]
[1760042451701,3.95052583,4338.8,4338.7,41.21462]
[1760042452000,4.82203583,4338.8,4338.7,0.41462]
[1760042453103,1.10764,4338.5,4338.4,40.8]
[1760042453401,8.04526053,4338.5,4338.4,41.21465]
[1760042454503,8.04526053,4338.5,4338.4,40.8]
[1760042454799,8.04526053,4338.5,4338.4,41.21465]
[1760042456605,7.63062053,4338.5,4338.4,41.21465]
[1760042457201,8.04526053,4338.5,4338.4,41.21465]
[1760042457596,7.85842053,4338.5,4338.4,0.85225]
[1760042457795,7.04182053,4338.5,4338.4,1.08685]
[1760042457996,6.70762053,4338.5,4338.4,1.08685]
[1760042458803,7.04182053,4338.5,4338.4,1.08685]
[1760042460305,3.75818165,4338.5,4338.4,1.08685]
[1760042464422,0.55038165,4338.5,4338.4,1.08685]
[1760042464621,0.55038165,4338.5,4338.3,41.03]
[1760042464622,0.00188378,4338.8,4338.7,0.6722]
[1760042464922,0.55244016,4338.8,4338.7,1.31682]
[1760042467124,0.86814016,4338.8,4338.7,1.31682]
[1760042467526,1.08714016,4338.8,4338.7,1.31682]
[1760042470025,1.31094016,4338.8,4338.7,0.64462]
[1760042470226,1.31094016,4338.8,4338.7,0.86642]
[1760042470420,1.31094016,4338.8,4338.7,1.09602]
[1760042471119,4.35754441,4338.8,4338.7,1.09602]
[1760042473228,4.58754441,4338.8,4338.7,0.41462]
[1760042474224,4.58754441,4338.8,4338.7,0.63642]
[1760042475828,4.58754441,4338.8,4338.7,0.41462]
[1760042478733,4.14474441,4338.8,4338.7,1.10012]
[1760042479129,4.36374441,4338.8,4338.7,1.10012]
[1760042481741,4.77835441,4338.8,4338.7,1.10012]
[1760042484038,4.77835441,4338.8,4338.7,0.86602]
[1760042485038,4.36374441,4338.8,4338.7,0.86602]
[1760042485346,4.36374441,4338.8,4338.7,1.10012]
[1760042485546,3.91474441,4338.8,4338.7,1.10012]
[1760042485747,4.14474441,4338.8,4338.7,1.10012]
[1760042486146,4.36374441,4338.8,4338.7,1.10012]
[1760042499264,4.13374441,4338.8,4338.7,1.10012]
[1760042499562,4.36374441,4338.8,4338.7,1.10012]
[1760042501256,0.55244016,4338.8,4338.7,1.10012]
[1760042503764,0.55244016,4338.8,4338.7,6.10012]
[1760042504265,0.00188378,4338.8,4338.7,6.10012]
[1760042504465,0.00188378,4338.8,4338.7,46.90012]
[1760042511168,0.54895082,4338.8,4338.7,46.90012]
[1760042511976,0.00188378,4338.8,4338.7,46.90012]
[1760042513075,0.54888717,4338.8,4338.7,46.90012]
[1760042513881,0.00188378,4338.8,4338.7,46.90012]
[1760042518276,0.00188378,4338.8,4338.7,41.90012]
[1760042518774,3.2078,4339.5,4339.4,0.41455]
[1760042519083,3.75453446,4339.5,4339.4,1.32875]
[1760042519382,3.75453446,4339.5,4339.4,42.12875]
[1760042519880,4.08190742,4339.5,4339.4,42.12875]
[1760042520276,0.54960742,4339.5,4339.4,42.12875]
[1760042520477,0.00287296,4339.5,4339.4,42.12875]
[1760042521984,3.2078,4340.0,4339.9,1.0958]
[1760042522178,3.2078,4340.0,4339.9,1.3258]
[1760042522984,3.2097438,4340.0,4339.9,1.3258]
[1760042523280,3.2097438,4340.0,4339.9,42.1258]
[1760042524477,3.5342438,4340.0,4339.9,41.8958]
[1760042524677,12.62109333,4340.0,4339.9,40.8]
[1760042524876,0.1273,4339.5,4339.2,0.4615]
[1760042525072,0.7574,4339.4,4339.3,0.86626]
[1760042525271,0.7574,4339.4,4339.3,41.66626]
[1760042526283,0.7574,4339.4,4339.3,41.89576]
[1760042530385,1.30422209,4339.4,4339.3,41.89576]
[1760042530982,0.7574,4339.4,4339.3,41.89576]
[1760042531785,0.5411,4339.4,4339.3,41.89576]
[1760042533284,1.08808008,4339.4,4339.3,41.89576]
[1760042537092,0.54698008,4339.4,4339.3,41.89576]
[1760042537395,3.2097438,4340.0,4339.9,1.065]
[1760042537588,3.2097438,4340.0,4339.9,1.295]
[1760042537589,3.7567686,4340.0,4339.9,1.295]
[1760042538789,3.7567686,4340.0,4339.9,42.095]
[1760042539394,3.6645438,4340.0,4339.9,42.095]
[1760042539594,3.5299438,4340.0,4339.9,42.095]
[1760042542993,3.6645438,4340.0,4339.9,41.865]
[1760042543193,4.21508736,4340.0,4339.9,41.6355]
[1760042543399,7.226833,4340.0,4339.9,41.4258]
[1760042544097,7.226833,4340.0,4339.9,41.6553]
[1760042544599,4.21508736,4340.0,4339.9,41.4258]
[1760042545188,7.16625531,4340.0,4339.9,41.0113]
[1760042545393,7.16625531,4340.0,4339.9,41.4258]
[1760042550400,7.39625531,4340.0,4339.9,41.4258]
[1760042550806,7.39625531,4340.0,4339.9,41.2145]
[1760042551708,7.83815531,4340.0,4339.9,0.4145]
[1760042553209,8.25264531,4340.0,4339.9,0.4145]
[1760042555409,7.83815531,4340.0,4339.9,0.4145]
[1760042555610,7.83815531,4340.0,4339.9,0.6258]
[1760042561614,8.25264531,4340.0,4339.9,0.6258]
[1760042561916,7.83815531,4340.0,4339.7,41.21452]
[1760042562114,0.7661,4339.3,4339.2,0.2186]
[1760042562414,1.31717682,4339.3,4339.2,0.4486]
[1760042562615,1.31717682,4339.3,4339.2,41.4596]
[1760042563216,1.31717682,4339.3,4339.2,41.87417]
[1760042565516,0.3148,4339.8,4339.7,0.41452]
[1760042565819,0.0019438,4340.0,4339.9,0.8601]
[1760042566020,0.0019438,4340.0,4339.9,1.3201]
[1760042566216,0.0019438,4340.0,4339.9,42.1201]
[1760042566718,0.0019438,4340.0,4339.9,47.1201]
[1760042566918,3.5226,4341.4,4341.3,0.41437]
[1760042567108,4.07130303,4341.4,4341.3,1.08807]
[1760042567520,4.28740303,4341.4,4341.3,1.08807]
[1760042568014,4.28740303,4341.4,4341.3,0.4456]
[1760042568219,4.50311334,4341.4,4341.3,0.22795239]
[1760042568411,7.45590401,4341.4,4341.3,0.00235239]
[1760042569014,0.6577,4340.5,4340.4,1.08815]
[1760042569216,0.6577,4340.5,4340.4,1.31815]
[1760042570019,0.6577,4340.5,4340.4,1.32006109]
[1760042572218,0.6577,4340.5,4340.4,1.09196109]
[1760042573124,0.6577,4340.5,4340.4,1.32006109]
[1760042573921,0.6577,4340.5,4340.4,1.09196109]
[1760042574429,0.6577,4340.5,4340.4,1.32006109]
[1760042575129,0.4416,4340.5,4340.4,1.32006109]
[1760042576124,0.6577,4340.5,4340.4,1.32006109]
[1760042578934,0.4293,4339.3,4339.1,1.65583713]
[1760042579234,0.2161,4338.1,4338.0,0.4456]
[1760042579542,0.5309,4338.1,4338.0,41.88838]
[1760042579835,0.5309,4338.1,4338.0,41.2456]
[1760042580032,0.5309,4338.1,4338.0,41.24811702]
[1760042580033,0.53371546,4338.1,4338.0,41.24811702]
[1760042585140,0.53371546,4338.1,4338.0,41.47621702]
[1760042588946,0.53371546,4338.1,4338.0,41.66279702]
[1760042590049,0.00281546,4338.1,4338.0,41.89109702]
[1760042590241,0.00281546,4338.1,4338.0,42.23579702]
[1760042590931,0.00281546,4338.1,4338.0,42.12109702]
[1760042592739,0.00281546,4338.1,4338.0,42.23579702]
[1760042600041,0.00281546,4338.1,4338.0,45.44359702]
[1760042606445,3.2078,4338.9,4338.8,1.09041]
[1760042606751,3.2078,4338.9,4338.8,1.32041]
[1760042607246,3.76898284,4338.9,4338.8,1.32041]
[1760042607543,3.20955819,4338.9,4338.8,1.32041]
[1760042607748,3.54885819,4338.9,4338.8,1.32041]
[1760042607947,3.54885819,4338.9,4338.8,42.12041]
[1760042608149,4.11102997,4338.9,4338.8,42.12041]
[1760042611148,3.54885819,4338.9,4338.8,42.12041]
[1760042612042,3.20955819,4338.9,4338.8,42.12041]
[1760042612752,3.54885819,4338.9,4338.8,42.12041]
[1760042620152,0.00175819,4338.9,4338.8,42.12041]
[1760042620352,0.00175819,4338.9,4338.8,47.12041]
[1760042620554,3.3452,4340.5,4340.3,0.41446]
[1760042620760,4.1311,4340.5,4340.4,0.4484]
[1760042620958,4.69295121,4340.5,4340.4,0.4484]
[1760042621160,7.97272099,4340.5,4340.4,0.4484]
[1760042621560,7.97447219,4340.5,4340.4,0.4484]
[1760042621956,9.79197567,4340.5,4340.4,0.4484]
[1760042622152,9.79197567,4340.5,4340.3,0.41446]
[1760042622153,7.97447219,4340.5,4340.3,0.41446]
[1760042622360,1.23085121,4340.4,4340.3,0.41446]
[1760042622657,4.6004737,4340.4,4340.3,0.41446]
[1760042623056,0.439,4339.9,4339.8,0.41451]
[1760042623259,4.78555121,4339.9,4339.8,0.41451]
[1760042623463,7.78228177,4339.9,4339.8,0.41451]
[1760042623664,7.78228177,4339.9,4339.8,0.64621]
[1760042625265,7.55228177,4339.9,4339.8,0.86291]
[1760042625460,6.78363056,4339.9,4339.8,1.08941]
[1760042625666,7.34274953,4339.9,4339.8,1.08941]
[1760042626366,7.34274953,4339.9,4339.8,0.86291]
[1760042626769,7.34274953,4339.9,4339.8,41.66291]
[1760042627667,6.78363056,4339.9,4339.8,41.66291]
[1760042628367,6.78363056,4339.9,4339.8,41.88941]
[1760042628568,7.34270441,4339.9,4339.8,41.88941]
[1760042628868,6.78363056,4339.9,4339.8,41.88941]
[1760042630964,7.19813056,4339.9,4339.8,41.2484]
[1760042631170,7.75535006,4339.9,4339.8,40.8]
[1760042631668,7.34085006,4339.9,4339.8,41.21451]
[1760042632859,7.57085006,4339.9,4339.8,41.21451]